[Event "5th EKA IIFL Investment 2019"]
[Site "Mumbai"]
[Date "2020.01.04"]
[Round "6.5"]
[White "Yudin, Sergei"]
[Black "Czebe, Attila"]
[Result "1-0"]
[ECO "B00"]
[WhiteElo "2497"]
[BlackElo "2374"]
[Annotator "ChessBase"]
[PlyCount "69"]
[EventDate "2019.12.30"]
[EventType "swiss"]
[EventCountry "IND"]
[SourceTitle "playchess.com"]
[Source "ChessBase"]
[SourceQuality "1"]
[TimeControl "40/5400+30:1800+30"]

1. e4 d6 {[%emt 0:00:00]} 2. d4 {[%emt 0:05:06]} g6 {[%emt 0:00:00]} 3. Nc3 {[%emt 0:01:33]} a6 {[%emt 0:00:18]} 4. Be3 {[%emt 0:00:30]} b5 {[%emt 0:00:13]} 5. h4 {[%emt 0:01:01]} Nf6 {[%emt 0:01:40]} 6. f3 {[%emt 0:00:21]} Bb7 {[%emt 0:01:37]} 7. Qd2 {[%emt 0:01:41]} e6 {[%emt 0:07:11]} 8. a4 {[%emt 0:15:33]} b4 {[%emt 0:01:56]} 9. Nd1 {[%emt 0:00:12]} a5 {[%emt 0:00:55]} 10. c3 {[%emt 0:00:06]} Na6 {[%emt 0:02:53]} 11. Bd3 {[%emt 0:00:41]} h5 {[%emt 0:01:18]} 12. Nh3 {[%emt 0:02:34]} Be7 {[%emt 0:02:04]} 13. O-O {[%emt 0:01:36]} c5 {[%emt 0:02:34]} 14. Bb5+ {[%emt 0:05:25]} Kf8 {[%emt 0:02:58]} 15. Ndf2 {[%emt 0:01:02]} Kg7 {[%emt 0:03:21]} 16. Bg5 {[%emt 0:05:36]} cxd4 {[%emt 0:10:51]} 17. cxd4 {[%emt 0:00:25]} Qb6 {[%emt 0:00:10]} 18. Rfd1 {[%emt 0:02:29]} Rac8 {[%emt 0:01:58]} 19. Be3 {[%emt 0:01:35]} d5 {[%emt 0:00:32]} 20. e5 {[%emt 0:05:02]} Ng8 {[%emt 0:00:22]} 21. Ng5 {[%emt 0:01:34]} Nc7 {[%emt 0:04:54]} 22. Be2 {[%emt 0:04:18]} Nh6 {[%emt 0:06:06]} 23. g4 {[%emt 0:01:07]} Ng8 {[%emt 0:01:00]} 24. Kg2 {[%emt 0:00:05]} Nh6 {[%emt 0:02:20]} 25. Rac1 {[%emt 0:03:49]} Na8 {[%emt 0:01:08]} 26. Nd3 {[%emt 0:01:13]} Rxc1 {[%emt 0:00:50]} 27. Rxc1 {[%emt 0:00:15]} Ba6 {[%emt 0:00:38]} 28. Nc5 {[%emt 0:00:55]} Bxe2 {[%emt 0:00:42]} 29. Qxe2 {[%emt 0:00:06]} Nc7 {[%emt 0:13:34]} 30. Kg3 {[%emt 0:01:44]} Rd8 {[%emt 0:02:02]} 31. Qd2 {[%emt 0:03:44]} Qb8 {[%emt 0:13:40]} 32. Ngxe6+ {[%emt 0:01:35]} Nxe6 {[%emt 0:00:43]} 33. Bxh6+ {[%emt 0:00:06]} Kh7 {[%emt 0:00:47]} 34. Nxe6 {[%emt 0:00:09]} fxe6 {[%emt 0:00:04]} 35. Qf4 {[%emt 0:03:54]} 1-0

[Event "5th EKA IIFL Investment 2019"]
[Site "Mumbai"]
[Date "2020.01.04"]
[Round "6.13"]
[White "Neverov, Valeriy"]
[Black "Pranesh M"]
[Result "1-0"]
[ECO "D52"]
[WhiteElo "2460"]
[BlackElo "2317"]
[Annotator "RC"]
[PlyCount "159"]
[EventDate "2019.12.30"]
[EventType "swiss"]
[EventCountry "IND"]
[SourceTitle "playchess.com"]
[Source "ChessBase"]
[SourceQuality "1"]
[TimeControl "40/5400+30:1800+30"]

1. d4 {[%emt 0:01:51]} Nf6 {[%emt 0:00:00]} 2. Nf3 {[%emt 0:00:42]} d5 {[%emt 0:00:00]} 3. c4 {[%emt 0:00:12]} e6 {[%emt 0:00:00]} 4. Bg5 {[%emt 0:01:08]} c6 {[%emt 0:00:34]} 5. e3 {[%emt 0:00:52]} Nbd7 {[%emt 0:01:49]} 6. Nc3 {[%emt 0:04:17]} Be7 {[%emt 0:00:42]} 7. Bd3 {[%emt 0:02:21]} h6 {[%emt 0:01:29]} 8. Bh4 {[%emt 0:02:04]} O-O {[%emt 0:01:31]} 9. O-O {[%emt 0:00:10]} b6 {[%emt 0:05:45]} 10. Qe2 {[%emt 0:04:52]} Ne4 {[%emt 0:01:29]} 11. cxd5 {[%emt 0:25:40]} exd5 {[%emt 0:01:29]} 12. Bg3 {[%emt 0:06:41]} f5 {[%emt 0:07:51]} 13. Rac1 {[%emt 0:03:31]} b5 {[%emt 0:06:38]} 14. Nd2 {[%emt 0:06:58]} Nxg3 {[%emt 0:15:03]} 15. hxg3 {[%emt 0:02:26]} Nb6 {[%emt 0:00:40]} 16. f4 {[%emt 0:01:11]} Be6 {[%emt 0:06:05]} 17. Nf3 {[%emt 0:02:17]} Nd7 {[%emt 0:06:57]} 18. Nd1 {[%emt 0:04:08]} Rc8 {[%emt 0:02:28]} 19. Nf2 {[%emt 0:00:16]} h5 {[%emt 0:05:00]} 20. Bb1 {[%emt 0:05:02]} g6 {[%emt 0:02:50]} 21. Nd3 {[%emt 0:00:07]} Kg7 {[%emt 0:00:58]} 22. Rc2 {[%emt 0:05:55]} Qb6 {[%emt 0:01:55]} 23. b4 {[%emt 0:01:15]} Qb7 {[%emt 0:02:13]} 24. Rfc1 {[%emt 0:02:49]} Nb6 {[%emt 0:00:21]} 25. Nc5 {[%emt 0:00:26]} Bxc5 {[%emt 0:00:23]} 26. Rxc5 {[%emt 0:00:09]} Nc4 {[%emt 0:02:57]} 27. Ne5 {[%emt 0:00:25]} Rc7 {[%emt 0:00:35]} 28. Bd3 {[%emt 0:02:09]} Ra8 {[%emt 0:01:58]} 29. a4 {[%emt 0:02:12]} a6 {[%emt 0:00:43]} 30. Rb1 {[%emt 0:02:11]} Nb6 {[%emt 0:00:48]} 31. Bc2 {[%emt 0:00:57]} Nd7 {[%emt 0:02:43]} 32. Rc3 {[%emt 0:02:16]} Nb6 {[%emt 0:00:07]} 33. Rc5 {[%emt 0:01:49]} Nd7 {[%emt 0:00:20]} 34. Rc3 {[%emt 0:00:07]} Nb6 {[%emt 0:00:01]} 35. Ra3 {[%emt 0:00:09]} Nc4 {[%emt 0:00:52]} 36. Ra2 {[%emt 0:00:13]} Qb6 {[%emt 0:01:39]} 37. Rba1 {[%emt 0:04:49]} Rca7 {[%emt 0:00:12]} 38. Qe1 {[%emt 0:02:03]} Bf7 {[%emt 0:01:33]} 39. Bd3 {[%emt 0:01:16]} Be8 {[%emt 0:01:36]} 40. Kf2 {[%emt 0:00:00]} Qb7 {[%emt 0:00:00]} 41. Qc3 {[%emt 0:08:16]} Qe7 {[%emt 0:08:27]} 42. Rb1 {[%emt 0:01:59]} Rb8 {[%emt 0:03:05]} 43. Qc1 {[%emt 0:03:50]} Rba8 {[%emt 0:06:01]} 44. Qc3 {[%emt 0:02:29]} Qb7 {[%emt 0:01:00]} 45. Raa1 {[%emt 0:01:25]} Qe7 {[%emt 0:01:55]} 46. Be2 {[%emt 0:01:09]} Qb7 {[%emt 0:05:48]} 47. Nd3 {[%emt 0:01:46]} Qb6 {[%emt 0:02:07]} 48. Ra2 {[%emt 0:02:50]} Re7 {[%emt 0:01:18]} 49. axb5 {[%emt 0:05:45]} cxb5 {[%emt 0:05:47]} 50. Ne5 {[%emt 0:00:21]} Rc7 {[%emt 0:01:13]} 51. Qb3 {[%emt 0:00:44]} Rca7 {[%emt 0:05:39]} 52. Rba1 {[%emt 0:00:29]} Qe6 {[%emt 0:00:56]} 53. Qc3 {[%emt 0:00:46]} Qd6 {[%emt 0:01:09]} 54. Qe1 {[%emt 0:00:16]} Qe7 {[%emt 0:02:01]} 55. Rb1 {[%emt 0:00:50]} Qd6 {[%emt 0:01:06]} 56. Rba1 {[%emt 0:01:28]} Qe7 {[%emt 0:00:23]} 57. Bf3 {[%emt 0:00:08]} Qd8 {[%emt 0:01:29]} 58. Nd3 {[%emt 0:01:14]} Bc6 {[%emt 0:01:48]} 59. Nc5 {[%emt 0:00:51]} Qe7 {[%emt 0:00:26]} 60. Bd1 {[%emt 0:02:46]} Re8 {[%emt 0:03:45]} 61. Re2 {[%emt 0:00:06]} Qf6 {[%emt 0:00:48]} 62. Rxa6 {[%emt 0:01:39]} Rae7 {[%emt 0:00:28]} 63. Nd3 {[%emt 0:00:30]} h4 {[%emt 0:02:28]} 64. Ne5 {[%emt 0:01:23]} hxg3+ {[%emt 0:00:12]} 65. Kxg3 {[%emt 0:00:40]} Rh8 {[%emt 0:00:23]} 66. Kf3 {[%emt 0:00:42]} g5 67. Qg3 {[%emt 0:00:26]} g4+ {[%emt 0:00:48]} 68. Kf2 {[%emt 0:00:07]} Nd6 {[%emt 0:00:06]} 69. Bc2 {[%emt 0:00:17]} Bb7 {[%emt 0:00:22]} 70. Rxd6 {[%emt 0:00:18]} Qxd6 {[%emt 0:00:03]} 71. Bxf5 {[%emt 0:00:01]} Kf6 {[%emt 0:00:27]} 72. Qxg4 {[%emt 0:01:06]} Rg7 {[%emt 0:00:03]} 73. Bg6 {[%emt 0:00:11]} Ke7 {[%emt 0:00:05]} 74. Rc2 {[%emt 0:00:47]} Rf8 {[%emt 0:00:14]} 75. Qh4+ {[%emt 0:01:13]} Rf6 {[%emt 0:00:01]} 76. f5 {[%emt 0:00:33]} Kf8 {[%emt 0:00:34]} 77. Qh8+ {[%emt 0:00:25]} Rg8 {[%emt 0:00:01]} 78. Nd7+ {[%emt 0:00:38]} Ke7 {[%emt 0:00:16]} 79. Qxg8 {[%emt 0:00:17]} Kxd7 {[%emt 0:00:03]} 80. Qe8# {[%emt 0:00:11]} 1-0

[Event "5th EKA IIFL Investment 2019"]
[Site "Mumbai"]
[Date "2020.01.04"]
[Round "6.14"]
[White "Muthaiah AL"]
[Black "Krishna C R G"]
[Result "1-0"]
[ECO "A06"]
[WhiteElo "2363"]
[BlackElo "2459"]
[Annotator "ChessBase"]
[PlyCount "69"]
[EventDate "2019.12.30"]
[EventType "swiss"]
[EventCountry "IND"]
[SourceTitle "playchess.com"]
[Source "ChessBase"]
[SourceQuality "1"]
[TimeControl "40/5400+30:1800+30"]

1. Nf3 {[%emt 0:00:00]} d5 {[%emt 0:01:42]} 2. g3 {[%emt 0:00:38]} c6 {[%emt 0:00:36]} 3. Bg2 {[%emt 0:00:27]} Bg4 {[%emt 0:00:13]} 4. h3 {[%emt 0:00:37]} Bh5 {[%emt 0:00:07]} 5. O-O {[%emt 0:01:24]} Nd7 {[%emt 0:00:21]} 6. d3 {[%emt 0:01:14]} e6 {[%emt 0:00:08]} 7. e4 Bd6 {[%emt 0:02:33]} 8. exd5 {[%emt 0:02:45]} cxd5 {[%emt 0:03:38]} 9. c4 {[%emt 0:01:28]} Ngf6 {[%emt 0:02:20]} 10. Nc3 {[%emt 0:01:34]} O-O {[%emt 0:11:18]} 11. cxd5 {[%emt 0:04:29]} exd5 {[%emt 0:07:52]} 12. d4 {[%emt 0:02:59]} Qa5 {[%emt 0:21:50]} 13. Bd2 {[%emt 0:09:36]} Qb6 {[%emt 0:04:46]} 14. Qb3 {[%emt 0:03:10]} Qxb3 {[%emt 0:11:05]} 15. axb3 {[%emt 0:00:18]} Bg6 {[%emt 0:00:08]} 16. Nb5 {[%emt 0:09:08]} Bb8 {[%emt 0:00:11]} 17. Rfc1 {[%emt 0:00:25]} b6 {[%emt 0:26:19]} 18. Nc7 {[%emt 0:07:23]} Bxc7 {[%emt 0:00:02]} 19. Rxc7 {[%emt 0:00:11]} a5 {[%emt 0:00:03]} 20. Ne5 {[%emt 0:01:29]} Bf5 {[%emt 0:00:01]} 21. g4 {[%emt 0:07:00]} Be6 {[%emt 0:00:02]} 22. f4 {[%emt 0:00:39]} g6 {[%emt 0:01:03]} 23. Nxd7 {[%emt 0:06:29]} Nxd7 {[%emt 0:00:11]} 24. Rf1 {[%emt 0:00:06]} Nf6 {[%emt 0:02:17]} 25. f5 {[%emt 0:00:07]} gxf5 {[%emt 0:00:04]} 26. gxf5 {[%emt 0:00:07]} Bc8 {[%emt 0:00:57]} 27. Bg5 {[%emt 0:01:48]} Kg7 {[%emt 0:02:11]} 28. Kh2 {[%emt 0:05:36]} Ba6 {[%emt 0:01:27]} 29. Rc6 {[%emt 0:03:46]} Ng8 {[%emt 0:00:02]} 30. Rg1 {[%emt 0:01:23]} Rac8 {[%emt 0:01:02]} 31. Bxd5 {[%emt 0:06:17]} Rxc6 {[%emt 0:00:02]} 32. Be7+ {[%emt 0:03:57]} Kh8 {[%emt 0:00:01]} 33. Bxf8 {[%emt 0:00:10]} Rc2+ {[%emt 0:00:02]} 34. Kh1 {[%emt 0:00:18]} h6 {[%emt 0:00:16]} 35. Bxf7 {[%emt 0:00:12]} 1-0

[Event "5th EKA IIFL Investment 2019"]
[Site "Mumbai"]
[Date "2020.01.04"]
[Round "6.15"]
[White "Subhayan Kundu"]
[Black "Nguyen, Van Huy"]
[Result "1-0"]
[ECO "B11"]
[WhiteElo "2222"]
[BlackElo "2457"]
[Annotator "ChessBase"]
[PlyCount "82"]
[EventDate "2019.12.30"]
[EventType "swiss"]
[EventCountry "IND"]
[SourceTitle "playchess.com"]
[Source "ChessBase"]
[SourceQuality "1"]
[TimeControl "40/5400+30:1800+30"]

1. e4 {[%emt 0:00:00]} c6 {[%emt 0:00:04]} 2. Nc3 {[%emt 0:00:41]} d5 {[%emt 0:00:23]} 3. Nf3 {[%emt 0:00:10]} Bg4 {[%emt 0:00:19]} 4. h3 {[%emt 0:00:07]} Bh5 {[%emt 0:00:49]} 5. exd5 {[%emt 0:00:23]} cxd5 {[%emt 0:00:07]} 6. g4 {[%emt 0:00:29]} Bg6 {[%emt 0:00:09]} 7. Bb5+ {[%emt 0:00:03]} Nc6 {[%emt 0:00:07]} 8. Ne5 {[%emt 0:00:08]} Rc8 {[%emt 0:00:12]} 9. d4 {[%emt 0:00:05]} e6 {[%emt 0:00:32]} 10. Qe2 {[%emt 0:00:04]} Bd6 {[%emt 0:02:52]} 11. Nxg6 {[%emt 0:01:20]} hxg6 {[%emt 0:01:03]} 12. Nxd5 {[%emt 0:00:10]} Kf8 {[%emt 0:00:04]} 13. Bxc6 {[%emt 0:00:15]} Rxc6 {[%emt 0:00:00]} 14. Ne3 {[%emt 0:00:35]} Bb8 {[%emt 0:12:11]} 15. d5 exd5 {[%emt 0:00:30]} 16. Bd2 {[%emt 0:22:43]} Nf6 {[%emt 0:06:06]} 17. O-O-O {[%emt 0:00:58]} Kg8 {[%emt 0:02:54]} 18. Qd3 {[%emt 0:09:42]} Bf4 {[%emt 0:08:34]} 19. Kb1 {[%emt 0:08:04]} Qb6 {[%emt 0:12:55]} 20. f3 {[%emt 0:07:22]} Kh7 {[%emt 0:06:53]} 21. h4 {[%emt 0:08:25]} Re8 {[%emt 0:06:07]} 22. Nxd5 {[%emt 0:10:53]} Nxd5 {[%emt 0:00:56]} 23. h5 {[%emt 0:00:03]} Rd8 {[%emt 0:21:08]} 24. hxg6+ Kg8 25. gxf7+ {[%emt 0:08:21]} Kxf7 {[%emt 0:00:47]} 26. Qf5+ {[%emt 0:00:09]} Rf6 {[%emt 0:00:49]} 27. Qh5+ {[%emt 0:00:04]} Rg6 {[%emt 0:02:01]} 28. Qf5+ {[%emt 0:00:36]} Rf6 {[%emt 0:00:11]} 29. Qh5+ {[%emt 0:00:05]} Rg6 {[%emt 0:00:04]} 30. Qf5+ {[%emt 0:00:05]} Qf6 {[%emt 0:01:31]} 31. Bxf4 Qxf5 {[%emt 0:03:56]} 32. gxf5 {[%emt 0:00:13]} Rc6 {[%emt 0:00:07]} 33. Rd4 {[%emt 0:04:53]} b5 {[%emt 0:00:22]} 34. Be5 {[%emt 0:04:24]} Rc4 {[%emt 0:01:28]} 35. Rd2 {[%emt 0:04:52]} Rc5 {[%emt 0:02:33]} 36. Rhd1 {[%emt 0:00:18]} b4 {[%emt 0:01:03]} 37. f4 {[%emt 0:00:48]} Rh8 {[%emt 0:00:45]} 38. a3 {[%emt 0:00:36]} Nf6 {[%emt 0:00:50]} 39. axb4 Rb5 40. Rd6 {[%emt 0:00:00]} Rh6 {[%emt 0:00:00]} 41. Ra6 {[%emt 0:04:55]} Rb7 {[%emt 0:01:49]} 1-0

[Event "5th EKA IIFL Investment 2019"]
[Site "Mumbai"]
[Date "2020.01.04"]
[Round "6.19"]
[White "Debashis, Das"]
[Black "Girinath, P.D.S."]
[Result "1-0"]
[ECO "E90"]
[WhiteElo "2523"]
[BlackElo "2330"]
[Annotator "ChessBase"]
[PlyCount "104"]
[EventDate "2019.12.30"]
[EventType "swiss"]
[EventCountry "IND"]
[SourceTitle "playchess.com"]
[Source "ChessBase"]
[SourceQuality "1"]
[TimeControl "40/5400+30:1800+30"]

1. d4 {[%emt 0:00:00]} Nf6 {[%emt 0:03:41]} 2. c4 {[%emt 0:00:00]} g6 {[%emt 0:00:45]} 3. Nf3 {[%emt 0:00:14]} Bg7 {[%emt 0:00:36]} 4. Nc3 {[%emt 0:00:56]} O-O {[%emt 0:01:07]} 5. e4 {[%emt 0:00:07]} d6 {[%emt 0:00:22]} 6. Be3 {[%emt 0:00:35]} Na6 {[%emt 0:05:01]} 7. Be2 {[%emt 0:00:48]} e5 {[%emt 0:02:23]} 8. O-O {[%emt 0:00:09]} c6 {[%emt 0:16:57]} 9. d5 {[%emt 0:00:57]} Nc5 {[%emt 0:06:24]} 10. Nd2 {[%emt 0:08:06]} a5 {[%emt 0:00:49]} 11. a3 {[%emt 0:01:39]} Ncd7 {[%emt 0:17:27]} 12. b4 {[%emt 0:04:07]} c5 {[%emt 0:00:22]} 13. Qb3 b6 {[%emt 0:05:14]} 14. Rfb1 {[%emt 0:07:19]} Ne8 {[%emt 0:00:10]} 15. bxa5 {[%emt 0:11:51]} bxa5 {[%emt 0:00:19]} 16. Ra2 {[%emt 0:11:59]} f5 {[%emt 0:00:11]} 17. f3 {[%emt 0:00:12]} Bf6 {[%emt 0:02:32]} 18. exf5 {[%emt 0:04:46]} gxf5 {[%emt 0:00:33]} 19. Qc2 {[%emt 0:01:44]} Bg5 {[%emt 0:02:01]} 20. Nf1 {[%emt 0:00:15]} Bxe3+ {[%emt 0:12:31]} 21. Nxe3 {[%emt 0:00:06]} Qg5 {[%emt 0:00:21]} 22. Qd2 {[%emt 0:03:10]} e4 {[%emt 0:04:12]} 23. Ned1 {[%emt 0:08:23]} Qxd2 {[%emt 0:06:07]} 24. Rxd2 {[%emt 0:00:08]} exf3 {[%emt 0:00:41]} 25. gxf3 {[%emt 0:00:06]} f4 {[%emt 0:00:23]} 26. Nf2 {[%emt 0:01:45]} Ne5 {[%emt 0:01:47]} 27. Nfe4 {[%emt 0:00:52]} Ra7 {[%emt 0:03:35]} 28. Kf2 {[%emt 0:00:48]} Rg7 {[%emt 0:00:50]} 29. Rg1 {[%emt 0:12:09]} Rxg1 {[%emt 0:01:06]} 30. Kxg1 {[%emt 0:00:04]} Rf7 {[%emt 0:02:10]} 31. Rb2 {[%emt 0:01:00]} Rb7 {[%emt 0:00:50]} 32. Rxb7 {[%emt 0:05:14]} Bxb7 {[%emt 0:00:07]} 33. Nb5 {[%emt 0:00:06]} Nf7 {[%emt 0:00:53]} 34. Nd2 {[%emt 0:01:03]} Bc8 {[%emt 0:01:13]} 35. Nb3 {[%emt 0:02:03]} a4 {[%emt 0:00:16]} 36. Nd2 {[%emt 0:01:01]} Kf8 {[%emt 0:02:37]} 37. Nc3 {[%emt 0:02:15]} Bd7 {[%emt 0:00:47]} 38. Bd1 {[%emt 0:00:06]} Ke7 {[%emt 0:00:41]} 39. Ne2 {[%emt 0:02:51]} Ne5 {[%emt 0:00:47]} 40. Nxf4 {[%emt 0:00:00]} Nc7 {[%emt 0:00:00]} 41. Bc2 {[%emt 0:04:55]} h6 {[%emt 0:01:07]} 42. Kf2 {[%emt 0:01:12]} Na8 {[%emt 0:01:06]} 43. Ng2 {[%emt 0:07:10]} Nb6 {[%emt 0:00:54]} 44. Ne3 {[%emt 0:00:07]} Bc8 {[%emt 0:01:01]} 45. Ke2 {[%emt 0:04:53]} Ba6 {[%emt 0:05:47]} 46. Bd3 {[%emt 0:00:21]} Bc8 {[%emt 0:01:19]} 47. f4 {[%emt 0:05:54]} Ng4 {[%emt 0:11:15]} 48. Ndf1 {[%emt 0:10:55]} Kf6 {[%emt 0:01:48]} 49. Ng2 {[%emt 0:02:17]} Ke7 {[%emt 0:01:11]} 50. Nh4 {[%emt 0:01:44]} Nf6 {[%emt 0:04:22]} 51. Ne3 {[%emt 0:00:21]} Ng8 {[%emt 0:00:54]} 52. Nhf5+ {[%emt 0:00:46]} Bxf5 {[%emt 0:01:02]} 1-0

[Event "5th EKA IIFL Investment 2019"]
[Site "Mumbai"]
[Date "2020.01.04"]
[Round "6.19"]
[White "Debashis, Das"]
[Black "Girinath, P.D.S."]
[Result "*"]
[ECO "E90"]
[WhiteElo "2523"]
[BlackElo "2330"]
[Annotator "ChessBase"]
[PlyCount "47"]
[EventDate "2019.12.30"]
[EventType "swiss"]
[EventCountry "IND"]
[SourceTitle "playchess.com"]
[Source "ChessBase"]
[SourceQuality "1"]
[TimeControl "40/5400+30:1800+30"]

1. d4 {[%emt 0:00:00]} Nf6 {[%emt 0:03:41]} 2. c4 {[%emt 0:00:00]} g6 {[%emt 0:00:45]} 3. Nf3 {[%emt 0:00:14]} Bg7 {[%emt 0:00:36]} 4. Nc3 {[%emt 0:00:56]} O-O {[%emt 0:01:07]} 5. e4 {[%emt 0:00:07]} d6 {[%emt 0:00:22]} 6. Be3 {[%emt 0:00:35]} Na6 {[%emt 0:05:01]} 7. Be2 {[%emt 0:00:48]} e5 {[%emt 0:02:23]} 8. O-O {[%emt 0:00:09]} c6 {[%emt 0:16:57]} 9. d5 {[%emt 0:00:57]} Nc5 {[%emt 0:06:24]} 10. Nd2 {[%emt 0:08:06]} a5 {[%emt 0:00:49]} 11. a3 {[%emt 0:01:39]} Ncd7 {[%emt 0:17:27]} 12. b4 {[%emt 0:04:07]} c5 {[%emt 0:00:22]} 13. Qb3 b6 {[%emt 0:05:14]} 14. Rfb1 {[%emt 0:07:19]} Ne8 {[%emt 0:00:10]} 15. bxa5 {[%emt 0:11:51]} bxa5 {[%emt 0:00:19]} 16. Ra2 {[%emt 0:11:59]} f5 {[%emt 0:00:11]} 17. f3 {[%emt 0:00:12]} Bf6 {[%emt 0:02:32]} 18. Qc2 {[%emt 0:06:00]} Bg5 {[%emt 0:02:04]} 19. Nf1 {[%emt 0:00:15]} Bxe3+ {[%emt 0:12:31]} 20. Nxe3 {[%emt 0:00:06]} Qg5 {[%emt 0:00:21]} 21. Qd2 {[%emt 0:03:10]} fxe4 {[%emt 0:04:12]} 22. Ned1 {[%emt 0:08:23]} Qxd2 {[%emt 0:06:07]} 23. Rxd2 {[%emt 0:00:08]} exf3 {[%emt 0:00:41]} 24. gxf3 {[%emt 0:00:06]} *

[Event "5th EKA IIFL Investment 2019"]
[Site "Mumbai"]
[Date "2020.01.04"]
[Round "6.20"]
[White "Ameir, Moheb"]
[Black "Rios, Cristhian Camilo"]
[Result "1-0"]
[ECO "B31"]
[WhiteElo "2342"]
[BlackElo "2505"]
[Annotator "ChessBase"]
[PlyCount "81"]
[EventDate "2019.12.30"]
[EventType "swiss"]
[EventCountry "IND"]
[SourceTitle "playchess.com"]
[Source "ChessBase"]
[SourceQuality "1"]
[TimeControl "40/5400+30:1800+30"]

1. e4 {[%emt 0:01:51]} c5 {[%emt 0:00:00]} 2. Nf3 {[%emt 0:00:12]} Nc6 {[%emt 0:00:28]} 3. Bb5 {[%emt 0:00:10]} g6 {[%emt 0:00:34]} 4. Bxc6 {[%emt 0:00:05]} bxc6 {[%emt 0:01:08]} 5. O-O {[%emt 0:00:19]} Bg7 {[%emt 0:01:07]} 6. Re1 {[%emt 0:00:17]} Nh6 {[%emt 0:02:34]} 7. c3 {[%emt 0:00:12]} O-O {[%emt 0:00:53]} 8. h3 f5 {[%emt 0:03:30]} 9. e5 {[%emt 0:01:23]} Nf7 {[%emt 0:01:45]} 10. d4 {[%emt 0:00:21]} cxd4 {[%emt 0:04:24]} 11. cxd4 {[%emt 0:00:03]} c5 {[%emt 0:00:09]} 12. dxc5 Qc7 13. Be3 {[%emt 0:03:55]} Bb7 {[%emt 0:44:37]} 14. Nc3 {[%emt 0:03:46]} Qc6 {[%emt 0:01:28]} 15. Qa4 {[%emt 0:05:21]} Qxa4 {[%emt 0:00:24]} 16. Nxa4 {[%emt 0:00:02]} Bxf3 {[%emt 0:01:21]} 17. gxf3 {[%emt 0:00:02]} Nxe5 {[%emt 0:00:11]} 18. Kg2 {[%emt 0:01:24]} f4 {[%emt 0:03:31]} 19. Bd4 Rf5 {[%emt 0:04:19]} 20. Bxe5 {[%emt 0:04:48]} Rxe5 21. Red1 {[%emt 0:07:22]} d6 {[%emt 0:00:39]} 22. cxd6 {[%emt 0:03:50]} exd6 {[%emt 0:00:09]} 23. Rxd6 {[%emt 0:05:45]} Rg5+ {[%emt 0:00:29]} 24. Kf1 {[%emt 0:04:15]} Rh5 25. Rad1 Rxh3 {[%emt 0:03:48]} 26. Rd8+ {[%emt 0:02:40]} Rxd8 {[%emt 0:00:06]} 27. Rxd8+ {[%emt 0:00:03]} Kf7 {[%emt 0:00:09]} 28. Rd7+ {[%emt 0:01:02]} Kg8 {[%emt 0:00:22]} 29. Kg2 {[%emt 0:02:00]} Rh5 {[%emt 0:00:06]} 30. Rxa7 {[%emt 0:00:27]} Rg5+ {[%emt 0:00:06]} 31. Kf1 {[%emt 0:11:14]} h5 {[%emt 0:00:10]} 32. b4 {[%emt 0:10:51]} Rd5 {[%emt 0:08:52]} 33. Nc5 {[%emt 0:01:26]} Rd1+ {[%emt 0:00:21]} 34. Kg2 {[%emt 0:00:13]} Bc3 {[%emt 0:01:08]} 35. b5 {[%emt 0:00:54]} Rb1 {[%emt 0:01:02]} 36. a4 {[%emt 0:01:33]} Bd4 {[%emt 0:00:08]} 37. Ra8+ {[%emt 0:03:46]} Kf7 {[%emt 0:00:07]} 38. Ne4 {[%emt 0:00:09]} Rb4 {[%emt 0:00:04]} 39. a5 {[%emt 0:00:56]} g5 {[%emt 0:00:20]} 40. Nxg5+ {[%emt 0:00:00]} Kg6 {[%emt 0:00:00]} 41. Ne6 {[%emt 0:06:14]} 1-0

[Event "5th EKA IIFL Investment 2019"]
[Site "Mumbai"]
[Date "2020.01.04"]
[Round "6.21"]
[White "Sahoo, Utkal Ranjan"]
[Black "Nigmatov, Ortik"]
[Result "0-1"]
[ECO "E81"]
[WhiteElo "2329"]
[BlackElo "2474"]
[Annotator "ChessBase"]
[PlyCount "102"]
[EventDate "2019.12.30"]
[EventType "swiss"]
[EventCountry "IND"]
[SourceTitle "playchess.com"]
[Source "ChessBase"]
[SourceQuality "1"]
[TimeControl "40/5400+30:1800+30"]

1. d4 {[%emt 0:00:00]} Nf6 {[%emt 0:03:46]} 2. c4 {[%emt 0:00:00]} g6 {[%emt 0:00:08]} 3. Nc3 {[%emt 0:00:00]} Bg7 {[%emt 0:00:05]} 4. e4 {[%emt 0:00:03]} d6 {[%emt 0:00:04]} 5. f3 {[%emt 0:00:26]} O-O {[%emt 0:00:21]} 6. Be3 {[%emt 0:00:11]} c5 {[%emt 0:00:21]} 7. Nge2 {[%emt 0:00:49]} cxd4 {[%emt 0:01:09]} 8. Nxd4 {[%emt 0:00:28]} Nc6 {[%emt 0:00:06]} 9. Qd2 {[%emt 0:00:54]} Bd7 {[%emt 0:00:03]} 10. Be2 {[%emt 0:00:32]} Nxd4 {[%emt 0:00:11]} 11. Bxd4 {[%emt 0:00:09]} Bc6 {[%emt 0:01:01]} 12. O-O {[%emt 0:00:24]} a5 {[%emt 0:00:02]} 13. Kh1 {[%emt 0:02:29]} Nd7 {[%emt 0:03:26]} 14. Bxg7 {[%emt 0:02:01]} Kxg7 {[%emt 0:00:02]} 15. f4 {[%emt 0:00:28]} Qb6 {[%emt 0:03:51]} 16. Rae1 {[%emt 0:03:41]} Qc5 {[%emt 0:01:59]} 17. Rf3 {[%emt 0:03:15]} Nf6 {[%emt 0:24:19]} 18. Re3 {[%emt 0:08:44]} e6 {[%emt 0:03:03]} 19. b3 {[%emt 0:04:27]} Rad8 {[%emt 0:02:24]} 20. Bf3 {[%emt 0:02:20]} e5 {[%emt 0:11:55]} 21. Rd3 {[%emt 0:10:57]} exf4 {[%emt 0:02:17]} 22. e5 {[%emt 0:03:38]} Ng8 {[%emt 0:22:10]} 23. Bxc6 {[%emt 0:04:33]} bxc6 {[%emt 0:00:09]} 24. exd6 {[%emt 0:00:31]} Qf5 {[%emt 0:01:06]} 25. Re4 {[%emt 0:04:13]} Rfe8 {[%emt 0:02:27]} 26. Rdd4 {[%emt 0:25:04]} f3 {[%emt 0:01:12]} 27. Rf4 {[%emt 0:08:33]} Qe5 {[%emt 0:06:16]} 28. gxf3 {[%emt 0:03:42]} f5 {[%emt 0:00:17]} 29. Rd3 {[%emt 0:01:43]} c5 {[%emt 0:03:47]} 30. Rh4 {[%emt 0:02:40]} Nf6 {[%emt 0:01:14]} 31. f4 {[%emt 0:01:14]} Qe6 {[%emt 0:03:15]} 32. Rhh3 {[%emt 0:00:25]} Ne4 {[%emt 0:00:27]} 33. Qb2 {[%emt 0:01:39]} Qf6 {[%emt 0:00:43]} 34. Rhe3 {[%emt 0:01:55]} Re6 {[%emt 0:01:54]} 35. d7 {[%emt 0:00:56]} Kf7 {[%emt 0:01:06]} 36. Rd5 {[%emt 0:04:17]} Re7 {[%emt 0:00:48]} 37. Qc2 {[%emt 0:00:33]} Nxc3 {[%emt 0:00:31]} 38. Rxc3 {[%emt 0:00:31]} Rdxd7 {[%emt 0:00:30]} 39. Rcd3 {[%emt 0:00:16]} Rxd5 {[%emt 0:00:29]} 40. cxd5 {[%emt 0:00:00]} Qh4 {[%emt 0:00:00]} 41. Rd1 {[%emt 0:03:41]} Qxf4 {[%emt 0:06:12]} 42. Qg2 {[%emt 0:00:21]} Qd6 {[%emt 0:02:01]} 43. Qd2 {[%emt 0:01:36]} Kg7 {[%emt 0:01:09]} 44. Qxa5 {[%emt 0:00:48]} Re3 {[%emt 0:05:46]} 45. Qd2 {[%emt 0:00:42]} Qe5 {[%emt 0:00:38]} 46. Qf2 {[%emt 0:03:30]} Re2 {[%emt 0:01:02]} 47. Qh4 {[%emt 0:00:10]} f4 {[%emt 0:01:00]} 48. Qg4 {[%emt 0:00:57]} Qe4+ {[%emt 0:00:35]} 49. Kg1 {[%emt 0:00:02]} Qe3+ {[%emt 0:00:13]} 50. Kh1 {[%emt 0:00:05]} h5 {[%emt 0:00:11]} 51. Qg5 {[%emt 0:02:24]} Qf3+ {[%emt 0:00:05]} 0-1